[Event "Championnat du monde jeunes U10"]
[Date "2024.11.25"]
[White "Melkonyan, Davit"]
[Black "Zuo, Junyu"]
[WhiteElo "1842"]
[BlackElo "2120"]
[Round "10.9"]
[Result "0-1"]
[TimeControl "5400+30"]

1. e4 {[%clk 1:30:58]} 1... c5 {[%clk 1:30:48]} 2. Nf3 {[%clk 1:31:24]} 2... e6
{[%clk 1:31:05]} 3. g3 {[%clk 1:31:50]} 3... Nc6 {[%clk 1:31:04]} 4. Bg2 {[%clk
1:32:12]} 4... Nf6 {[%clk 1:30:38]} 5. Qe2 {[%clk 1:31:42]} 5... d6 {[%clk
1:30:20]} 6. O-O {[%clk 1:31:32]} 6... Be7 {[%clk 1:30:11]} 7. c3 {[%clk
1:30:35]} 7... O-O {[%clk 1:28:06]} 8. d4 {[%clk 1:30:14]} 8... cxd4 {[%clk
1:24:41]} 9. cxd4 {[%clk 1:30:13]} 9... e5 {[%clk 1:12:00]} 10. dxe5 {[%clk
1:22:17]} 10... dxe5 {[%clk 1:11:40]} 11. Rd1 {[%clk 1:20:01]} 11... Qc7 {[%clk
1:09:25]} 12. h3 {[%clk 1:17:25]} 12... Be6 {[%clk 1:04:43]} 13. Nc3 {[%clk
1:16:45]} 13... Rfd8 {[%clk 0:55:41]} 14. Be3 {[%clk 1:14:50]} 14... Nb4 {[%clk
0:32:20]} 15. Bf1 {[%clk 1:11:55]} 15... a6 {[%clk 0:22:48]} 16. Rac1 {[%clk
1:10:44]} 16... Nc6 {[%clk 0:22:29]} 17. Ng5 {[%clk 1:08:18]} 17... Rxd1 {[%clk
0:20:31]} 18. Qxd1 {[%clk 1:07:00]} 18... Rd8 {[%clk 0:18:51]} 19. Nxe6 {[%clk
1:06:57]} 19... fxe6 {[%clk 0:18:58]} 20. Qb3 {[%clk 1:07:23]} 20... Qd7 {[%clk
0:11:48]} 21. Bc4 {[%clk 1:05:06]} 21... Kf7 {[%clk 0:11:41]} 22. Rd1 {[%clk
1:02:26]} 22... Qc8 {[%clk 0:11:07]} 23. Bb6 {[%clk 0:59:27]} 23... Nd4 {[%clk
0:08:38]} 24. Bxd4 {[%clk 0:56:15]} 24... Rxd4 {[%clk 0:04:16]} 25. Rxd4 {[%clk
0:56:15]} 25... exd4 {[%clk 0:04:41]} 26. Ne2 {[%clk 0:56:27]} 26... b5 {[%clk
0:04:48]} 27. Bd3 {[%clk 0:56:48]} 27... Qc5 {[%clk 0:04:55]} 28. a4 {[%clk
0:55:24]} 28... bxa4 {[%clk 0:02:57]} 29. Qxa4 {[%clk 0:55:45]} 29... Qb6 {[%clk
0:01:58]} 30. b3 {[%clk 0:54:17]} 30... a5 {[%clk 0:01:15]} 31. Kg2 {[%clk
0:52:46]} 31... e5 {[%clk 0:00:33]} 32. Qc4+ {[%clk 0:52:35]} 32... Ke8 {[%clk
0:00:32]} 33. Qc8+ {[%clk 0:52:31]} 33... Qd8 {[%clk 0:00:54]} 34. Bb5+ {[%clk
0:52:26]} 34... Kf8 {[%clk 0:01:06]} 35. Qe6 {[%clk 0:51:35]} 35... Qd6 {[%clk
0:01:27]} 36. Qc8+ {[%clk 0:50:40]} 36... Qd8 {[%clk 0:01:08]} 37. Qc2 {[%clk
0:49:07]} 37... Qb8 {[%clk 0:00:38]} 38. Qd3 {[%clk 0:49:15]} 38... Qc7 {[%clk
0:00:39]} 39. f4 {[%clk 0:46:25]} 39... Bc5 {[%clk 0:00:45]} 40. Kf3 {[%clk
0:44:53]} 40... Ke7 {[%clk 0:01:06]} 41. f5 {[%clk 0:40:51]} 41... Qb7 {[%clk
0:01:10]} 42. Bc4 {[%clk 0:34:18]} 42... Qb4 {[%clk 0:01:12]} 43. Be6 {[%clk
0:34:02]} 43... Qe1 {[%clk 0:00:56]} 44. Kg2 {[%clk 0:33:52]} 44... Qb4 {[%clk
0:00:40]} 45. g4 {[%clk 0:31:52]} 45... h6 {[%clk 0:00:42]} 46. Kf3 {[%clk
0:30:07]} 46... Qe1 {[%clk 0:01:07]} 47. Kg2 {[%clk 0:30:15]} 47... Qb4 {[%clk
0:00:48]} 48. Kf3 {[%clk 0:30:17]} 48... Qb7 {[%clk 0:00:48]} 49. Qc2 {[%clk
0:29:11]} 49... Qb5 {[%clk 0:00:46]} 50. Qc4 {[%clk 0:27:46]} 50... Qxc4 {[%clk
0:00:32]} 51. Bxc4 {[%clk 0:28:06]} 51... Ba3 {[%clk 0:00:56]} 52. h4 {[%clk
0:27:45]} 52... Nd7 {[%clk 0:01:03]} 53. g5 {[%clk 0:25:40]} 53... hxg5 {[%clk
0:01:16]} 54. hxg5 {[%clk 0:25:03]} 54... Nc5 {[%clk 0:01:18]} 55. Ng3 {[%clk
0:24:26]} 55... Bc1 {[%clk 0:01:32]} 56. f6+ {[%clk 0:23:50]} 56... gxf6 {[%clk
0:01:39]} 57. Nf5+ {[%clk 0:23:15]} 57... Kf8 {[%clk 0:01:05]} 58. g6 {[%clk
0:23:32]} 58... Bh6 {[%clk 0:00:58]} 59. Nxh6 {[%clk 0:23:36]} 59... Kg7 {[%clk
0:01:25]} 60. Nf5+ {[%clk 0:23:55]} 60... Kxg6 {[%clk 0:01:50]} 61. Ne7+ {[%clk
0:24:20]} 61... Kg5 {[%clk 0:02:14]} 62. Nc6 {[%clk 0:24:15]} 62... f5 {[%clk
0:01:15]} 63. exf5 {[%clk 0:24:21]} 63... e4+ {[%clk 0:01:40]} 64. Ke2 {[%clk
0:24:37]} 64... d3+ {[%clk 0:01:25]} 65. Ke3 {[%clk 0:24:53]} 65... a4 {[%clk
0:01:11]} 66. b4 {[%clk 0:24:13]} 66... Nb3 {[%clk 0:00:31]} 67. Na5 {[%clk
0:20:06]} 67... d2 {[%clk 0:00:35]} 68. Bxb3 {[%clk 0:20:22]} 68... axb3 {[%clk
0:00:58]} 69. Kxd2 {[%clk 0:20:47]} 69... e3+ {[%clk 0:01:20]} 70. Kxe3 {[%clk
0:19:41]} 70... b2 {[%clk 0:01:47]} 71. Kd4 {[%clk 0:19:58]} 71... b1=Q {[%clk
0:02:09]} 72. Kc5 {[%clk 0:20:18]} 72... Kxf5 {[%clk 0:02:29]} 73. b5 {[%clk
0:20:45]} 73... Ke6 {[%clk 0:02:36]} 74. Nc6 {[%clk 0:21:06]} 74... Qg1+ {[%clk
0:02:56]} 75. Kc4 {[%clk 0:21:31]} 75... Kd6 {[%clk 0:03:19]} 76. Nd4 {[%clk
0:21:57]} 76... Qc1+ {[%clk 0:03:42]} 77. Kd3 {[%clk 0:22:21]} 77... Kd5 {[%clk
0:03:52]} 78. Nc2 {[%clk 0:22:44]} 78... Qf1+ {[%clk 0:04:08]} 79. Kc3 {[%clk
0:23:06]} 79... Qxb5 {[%clk 0:04:29]} 80. Ne3+ {[%clk 0:23:33]} 80... Kc5 {[%clk
0:04:53]} 81. Nc2 {[%clk 0:23:58]} 81... Qe2 {[%clk 0:05:19]} 82. Kb3 {[%clk
0:24:17]} 82... Qd3+ {[%clk 0:05:43]} 83. Kb2 {[%clk 0:24:43]} 83... Kc4 {[%clk
0:05:57]} 84. Na3+ {[%clk 0:25:11]} 84... Kb4 {[%clk 0:06:24]} 85. Nb1 {[%clk
0:25:32]} 85... Qe2+ {[%clk 0:06:47]} 86. Kc1 {[%clk 0:25:53]} 86... Kb3 {[%clk
0:07:05]} 87. Nd2+ {[%clk 0:26:19]} 87... Kc3 {[%clk 0:07:28]} 88. Nb1+ {[%clk
0:26:45]} 88... Kd3 {[%clk 0:07:55]} 89. Na3 {[%clk 0:27:12]} 89... Qa2 {[%clk
0:08:18]} 90. Nb1 {[%clk 0:27:37]} 90... Qc2# {[%clk 0:08:43]} 0-1

[Variant "Standard"]
[Site "Europe Echecs"]

[Event "Championnat du monde jeunes U10"]
[Date "2024.11.25"]
[White "Nguyen Truong An Khang"]
[Black "Shangin, Lev"]
[WhiteElo "1836"]
[BlackElo "2056"]
[Round "10.10"]
[Result "0-1"]
[TimeControl "5400+30"]

1. d4 {[%clk 1:30:57]} 1... Nf6 {[%clk 1:30:44]} 2. c4 {[%clk 1:31:25]} 2... e6
{[%clk 1:31:03]} 3. Nc3 {[%clk 1:31:49]} 3... Bb4 {[%clk 1:31:08]} 4. a3 {[%clk
1:32:12]} 4... Bxc3+ {[%clk 1:30:44]} 5. bxc3 {[%clk 1:32:40]} 5... c5 {[%clk
1:27:28]} 6. f3 {[%clk 1:30:47]} 6... O-O {[%clk 1:22:21]} 7. e4 {[%clk
1:30:10]} 7... Nc6 {[%clk 1:17:12]} 8. Be3 {[%clk 1:25:39]} 8... Qa5 {[%clk
1:06:42]} 9. Qd2 {[%clk 1:20:41]} 9... d6 {[%clk 1:03:05]} 10. Bd3 {[%clk
1:13:15]} 10... cxd4 {[%clk 0:54:52]} 11. cxd4 {[%clk 1:13:37]} 11... Qxd2+
{[%clk 0:55:03]} 12. Kxd2 {[%clk 1:14:04]} 12... b6 {[%clk 0:53:15]} 13. Rc1
{[%clk 1:06:57]} 13... Ba6 {[%clk 0:49:55]} 14. Ne2 {[%clk 1:02:43]} 14... Na5
{[%clk 0:47:19]} 15. Rc3 {[%clk 0:59:38]} 15... Rfd8 {[%clk 0:42:05]} 16. Nf4
{[%clk 0:51:39]} 16... Rac8 {[%clk 0:37:47]} 17. Rhc1 {[%clk 0:51:30]} 17... Rc7
{[%clk 0:35:21]} 18. g4 {[%clk 0:37:03]} 18... Rdc8 {[%clk 0:27:29]} 19. c5
{[%clk 0:34:54]} 19... Bxd3 {[%clk 0:27:49]} 20. Kxd3 {[%clk 0:35:01]} 20...
dxc5 {[%clk 0:24:26]} 21. dxc5 {[%clk 0:35:25]} 21... Nd7 {[%clk 0:23:53]} 22.
cxb6 {[%clk 0:30:54]} 22... Ne5+ {[%clk 0:24:02]} 23. Kd2 {[%clk 0:30:28]} 23...
Nxf3+ {[%clk 0:21:41]} 24. Kd3 {[%clk 0:30:49]} 24... Ne5+ {[%clk 0:20:47]} 25.
Kd2 {[%clk 0:30:03]} 25... Nb3+ {[%clk 0:19:28]} 26. Rxb3 {[%clk 0:22:25]} 26...
Rxc1 {[%clk 0:19:43]} 27. Bd4 {[%clk 0:20:51]} 27... R8c2+ {[%clk 0:19:19]} 28.
Ke3 {[%clk 0:21:15]} 28... Re1+ {[%clk 0:19:44]} 29. Ne2 {[%clk 0:20:59]} 29...
Rcxe2+ {[%clk 0:19:59]} 30. Kf4 {[%clk 0:21:14]} 30... Rxe4+ {[%clk 0:20:27]}
31. Kg3 {[%clk 0:21:20]} 31... axb6 {[%clk 0:20:42]} 32. Rxb6 {[%clk 0:21:34]}
32... h6 {[%clk 0:20:42]} 0-1

[Variant "Standard"]
[Site "Europe Echecs"]

[Event "Championnat du monde jeunes U10"]
[Date "2024.11.25"]
[White "Zhauynbay, Alimzhan"]
[Black "Mulay, Vivan Prakash"]
[WhiteElo "1953"]
[BlackElo "1823"]
[Round "10.11"]
[Result "1-0"]
[TimeControl "5400+30"]

1. e4 {[%clk 1:30:58]} 1... c5 {[%clk 1:30:51]} 2. Nf3 {[%clk 1:31:24]} 2... d6
{[%clk 1:31:12]} 3. d4 {[%clk 1:31:49]} 3... cxd4 {[%clk 1:31:38]} 4. Nxd4
{[%clk 1:32:16]} 4... Nf6 {[%clk 1:31:57]} 5. Nc3 {[%clk 1:32:42]} 5... a6
{[%clk 1:32:24]} 6. f3 {[%clk 1:32:57]} 6... e6 {[%clk 1:32:35]} 7. Be3 {[%clk
1:33:23]} 7... b5 {[%clk 1:32:40]} 8. Qd2 {[%clk 1:33:35]} 8... Nbd7 {[%clk
1:32:46]} 9. g4 {[%clk 1:33:53]} 9... h6 {[%clk 1:32:52]} 10. h4 {[%clk
1:23:16]} 10... Bb7 {[%clk 1:29:11]} 11. Rg1 {[%clk 1:17:25]} 11... Nb6 {[%clk
1:23:06]} 12. a4 {[%clk 1:10:34]} 12... b4 {[%clk 1:17:40]} 13. Na2 {[%clk
1:09:04]} 13... d5 {[%clk 1:13:37]} 14. g5 {[%clk 1:06:52]} 14... Nfd7 {[%clk
1:10:50]} 15. a5 {[%clk 1:01:40]} 15... Nc4 {[%clk 1:01:25]} 16. Bxc4 {[%clk
1:01:31]} 16... dxc4 {[%clk 1:01:53]} 17. Nxb4 {[%clk 0:56:51]} 17... Ne5 {[%clk
0:59:37]} 18. Qc3 {[%clk 0:42:55]} 18... Bc5 {[%clk 0:51:18]} 19. Nxe6 {[%clk
0:32:38]} 19... Nxf3+ {[%clk 0:40:48]} 20. Kf2 {[%clk 0:29:54]} 20... fxe6
{[%clk 0:38:43]} 21. Bxc5 {[%clk 0:28:12]} 21... Qc7 {[%clk 0:37:36]} 22. Qxc4
{[%clk 0:23:11]} 22... O-O-O {[%clk 0:35:02]} 23. Nxa6 {[%clk 0:19:26]} 23...
Rd2+ {[%clk 0:22:32]} 24. Ke3 {[%clk 0:18:35]} 24... Qc6 {[%clk 0:20:02]} 25.
Nb4 {[%clk 0:18:45]} 25... Ne5 {[%clk 0:12:59]} 26. Qc3 {[%clk 0:13:59]} 26...
Qxe4+ {[%clk 0:11:18]} 27. Kxd2 {[%clk 0:14:24]} 27... Rd8+ {[%clk 0:09:32]} 28.
Kc1 {[%clk 0:14:19]} 28... Nc4 {[%clk 0:08:51]} 29. b3 {[%clk 0:14:20]} 29...
Qf4+ {[%clk 0:08:29]} 30. Kb1 {[%clk 0:14:39]} 30... Nd2+ {[%clk 0:08:45]} 31.
Kb2 {[%clk 0:15:00]} 31... Ne4 {[%clk 0:09:09]} 32. Bd6+ {[%clk 0:14:59]} 1-0

[Variant "Standard"]
[Site "Europe Echecs"]

[Event "Championnat du monde jeunes U10"]
[Date "2024.11.25"]
[White "Aitmukhanov, Arsen"]
[Black "Fuentes de Nova, Sebastian"]
[WhiteElo "1579"]
[BlackElo "1929"]
[Round "10.12"]
[Result "1/2-1/2"]
[TimeControl "5400+30"]

1. e4 {[%clk 1:30:56]} 1... e5 {[%clk 1:30:46]} 2. Nf3 {[%clk 1:31:19]} 2... Nc6
{[%clk 1:31:08]} 3. Bc4 {[%clk 1:31:43]} 3... Bc5 {[%clk 1:31:30]} 4. c3 {[%clk
1:32:07]} 4... Nf6 {[%clk 1:31:55]} 5. d3 {[%clk 1:32:31]} 5... d6 {[%clk
1:32:16]} 6. O-O {[%clk 1:32:54]} 6... a5 {[%clk 1:31:58]} 7. a4 {[%clk
1:32:35]} 7... O-O {[%clk 1:28:38]} 8. Nbd2 {[%clk 1:31:03]} 8... Be6 {[%clk
1:22:46]} 9. Ng5 {[%clk 1:27:17]} 9... Bxc4 {[%clk 1:18:05]} 10. Nxc4 {[%clk
1:27:09]} 10... h6 {[%clk 1:17:49]} 11. Nf3 {[%clk 1:24:36]} 11... Re8 {[%clk
1:15:43]} 12. Ne3 {[%clk 1:24:26]} 12... d5 {[%clk 1:12:38]} 13. Qc2 {[%clk
1:24:30]} 13... d4 {[%clk 1:07:33]} 14. Nf5 {[%clk 1:24:04]} 14... Bf8 {[%clk
1:05:43]} 15. Bd2 {[%clk 1:15:54]} 15... Qd7 {[%clk 1:00:58]} 16. c4 {[%clk
1:09:06]} 16... Nb4 {[%clk 0:58:58]} 17. Bxb4 {[%clk 1:07:25]} 17... axb4 {[%clk
0:58:04]} 18. b3 {[%clk 1:05:05]} 18... Nh5 {[%clk 0:57:05]} 19. Qd2 {[%clk
1:02:43]} 19... Ra6 {[%clk 0:53:59]} 20. Kh1 {[%clk 0:58:40]} 20... Kh7 {[%clk
0:44:20]} 21. g4 {[%clk 0:53:52]} 21... g6 {[%clk 0:41:06]} 22. gxh5 {[%clk
0:54:08]} 22... gxf5 {[%clk 0:41:29]} 23. Rg1 {[%clk 0:53:57]} 23... fxe4 {[%clk
0:38:14]} 24. dxe4 {[%clk 0:54:13]} 24... Qh3 {[%clk 0:37:56]} 25. Qe2 {[%clk
0:53:53]} 25... Kh8 {[%clk 0:22:12]} 26. Ne1 {[%clk 0:47:05]} 26... Be7 {[%clk
0:13:59]} 27. Rg3 {[%clk 0:46:47]} 27... Qd7 {[%clk 0:12:10]} 28. Nd3 {[%clk
0:47:04]} 28... Bh4 {[%clk 0:10:46]} 29. Rg4 {[%clk 0:47:00]} 29... Qe7 {[%clk
0:10:45]} 30. Rag1 {[%clk 0:35:41]} 30... Bg5 {[%clk 0:09:27]} 31. Qf3 {[%clk
0:33:57]} 31... f5 {[%clk 0:07:31]} 32. R4g2 {[%clk 0:32:58]} 32... fxe4 {[%clk
0:06:14]} 33. Qxe4 {[%clk 0:33:22]} 33... Qh7 {[%clk 0:06:20]} 34. Qxh7+ {[%clk
0:31:50]} 34... Kxh7 {[%clk 0:06:43]} 35. h4 {[%clk 0:32:12]} 35... Bf6 {[%clk
0:04:35]} 36. Nxb4 {[%clk 0:25:49]} 36... Rd6 {[%clk 0:04:39]} 37. Nd5 {[%clk
0:24:29]} 37... c6 {[%clk 0:04:45]} 38. Nxf6+ {[%clk 0:24:47]} 38... Rxf6 {[%clk
0:05:13]} 39. Rg7+ {[%clk 0:25:11]} 39... Kh8 {[%clk 0:05:36]} 40. Rd7 {[%clk
0:24:40]} 40... Rxf2 {[%clk 0:04:45]} 41. Rg6 {[%clk 0:24:23]} 41... e4 {[%clk
0:04:01]} 42. Rxh6+ {[%clk 0:24:35]} 42... Kg8 {[%clk 0:04:27]} 43. Rhh7 {[%clk
0:24:30]} 43... Rf4 {[%clk 0:03:28]} 44. Rdg7+ {[%clk 0:16:22]} 44... Kf8 {[%clk
0:03:43]} 45. Rxb7 {[%clk 0:14:18]} 45... Kg8 {[%clk 0:03:06]} 46. Rbg7+ {[%clk
0:13:30]} 46... Kf8 {[%clk 0:03:28]} 47. Rd7 {[%clk 0:13:44]} 47... Kg8 {[%clk
0:03:27]} 48. Rhg7+ {[%clk 0:13:44]} 48... Kh8 {[%clk 0:03:28]} 49. Rh7+ {[%clk
0:12:20]} 49... Kg8 {[%clk 0:03:47]} 50. Rhg7+ {[%clk 0:05:45]} 50... Kh8 {[%clk
0:04:08]} 51. Kg2 {[%clk 0:05:19]} 51... Rxh4 {[%clk 0:03:44]} 52. Rh7+ {[%clk
0:05:05]} 52... Kg8 {[%clk 0:04:08]} 53. Kg3 {[%clk 0:03:30]} 53... Rh1 {[%clk
0:04:09]} 54. h6 {[%clk 0:03:11]} 54... Rg1+ {[%clk 0:04:17]} 55. Kf2 {[%clk
0:03:34]} 55... Rg6 {[%clk 0:04:26]} 56. Rhg7+ {[%clk 0:03:53]} 56... Rxg7
{[%clk 0:04:45]} 57. Rxg7+ {[%clk 0:04:19]} 57... Kh8 {[%clk 0:04:48]} 58. b4
{[%clk 0:03:06]} 58... e3+ {[%clk 0:01:49]} 59. Ke1 {[%clk 0:03:21]} 59... d3
{[%clk 0:01:57]} 60. Rd7 {[%clk 0:03:35]} 60... Re4 {[%clk 0:00:49]} 61. Rxd3
{[%clk 0:03:20]} 61... Rxc4 {[%clk 0:01:13]} 62. Rb3 {[%clk 0:03:33]} 62... c5
{[%clk 0:01:06]} 63. bxc5 {[%clk 0:00:46]} 63... Rxc5 {[%clk 0:00:54]} 64. Ra3
{[%clk 0:01:06]} 64... Ra5 {[%clk 0:01:03]} 65. Ke2 {[%clk 0:01:32]} 65... Kh7
{[%clk 0:01:29]} 66. Kxe3 Kxh6 {[%clk 0:01:54]} 67. Kd4 {[%clk 0:02:23]} 67...
Kg7 {[%clk 0:01:55]} 68. Kc4 {[%clk 0:02:48]} 68... Kf7 {[%clk 0:01:47]} 69. Kb4
{[%clk 0:03:13]} 69... Ra8 {[%clk 0:02:03]} 70. a5 {[%clk 0:03:37]} 70... Ke6
{[%clk 0:02:24]} 71. Rd3 {[%clk 0:04:02]} 71... Rb8+ {[%clk 0:01:30]} 72. Kc5
{[%clk 0:04:26]} 72... Rc8+ {[%clk 0:00:57]} 73. Kb6 {[%clk 0:04:52]} 73... Rb8+
{[%clk 0:01:17]} 74. Kc7 {[%clk 0:04:53]} 74... Rb1 {[%clk 0:00:57]} 75. Rd6+
{[%clk 0:03:19]} 75... Ke7 {[%clk 0:00:57]} 76. Rb6 {[%clk 0:03:43]} 76... Rc1+
{[%clk 0:01:02]} 77. Kb7 {[%clk 0:04:09]} 77... Kd7 {[%clk 0:01:25]} 78. a6
{[%clk 0:02:13]} 78... Rc7+ {[%clk 0:01:20]} 79. Ka8 {[%clk 0:02:38]} 79... Rc8+
{[%clk 0:01:13]} 80. Ka7 {[%clk 0:03:03]} 80... Rc7+ {[%clk 0:01:10]} 81. Rb7
{[%clk 0:02:44]} 81... Kc8 {[%clk 0:01:30]} 82. Kb6 {[%clk 0:02:41]} 82... Rc1
{[%clk 0:01:47]} 83. Rh7 {[%clk 0:02:46]} 83... Rb1+ {[%clk 0:02:03]} 84. Ka7
{[%clk 0:03:10]} 84... Rb2 {[%clk 0:01:58]} 85. Ka8 {[%clk 0:02:59]} 85... Ra2
{[%clk 0:02:09]} 86. Rh6 {[%clk 0:02:59]} 86... Kc7 {[%clk 0:02:11]} 87. Ka7
{[%clk 0:03:23]} 87... Ra1 {[%clk 0:02:33]} 88. Rh2 {[%clk 0:03:37]} 88... Rc1
{[%clk 0:02:35]} 89. Rh8 {[%clk 0:03:43]} 89... Ra1 {[%clk 0:02:57]} 90. Rh7+
{[%clk 0:03:58]} 90... Kc8 {[%clk 0:02:53]} 91. Rh2 {[%clk 0:04:19]} 91... Rc1
{[%clk 0:03:12]} 92. Rb2 {[%clk 0:04:23]} 92... Kc7 {[%clk 0:03:16]} 93. Rg2
{[%clk 0:04:03]} 93... Rc3 {[%clk 0:03:24]} 94. Rg7+ {[%clk 0:04:19]} 94... Kc8
{[%clk 0:03:41]} 95. Kb6 {[%clk 0:04:44]} 95... Rb3+ {[%clk 0:04:02]} 96. Kc5
{[%clk 0:04:39]} 96... Kb8 {[%clk 0:04:19]} 97. Rg6 {[%clk 0:04:51]} 97... Ka7
{[%clk 0:04:35]} 98. Rg2 {[%clk 0:05:07]} 1/2-1/2

[Variant "Standard"]
[Site "Europe Echecs"]

[Event "Championnat du monde jeunes U10"]
[Date "2024.11.25"]
[White "Andre, Tomas"]
[Black "Dayal, Samar"]
[WhiteElo "1928"]
[BlackElo "1818"]
[Round "10.13"]
[Result "0-1"]
[TimeControl "5400+30"]

1. e4 {[%clk 1:30:04]} 1... c5 2. Nf3 {[%clk 1:30:07]} 2... d6 {[%clk 1:31:29]}
3. d4 {[%clk 1:30:26]} 3... cxd4 {[%clk 1:31:58]} 4. Nxd4 {[%clk 1:30:47]} 4...
Nf6 {[%clk 1:32:27]} 5. Nc3 {[%clk 1:31:05]} 5... g6 {[%clk 1:32:56]} 6. Be3
{[%clk 1:31:20]} 6... Bg7 {[%clk 1:33:24]} 7. f3 {[%clk 1:31:35]} 7... O-O
{[%clk 1:33:51]} 8. Qd2 {[%clk 1:31:55]} 8... Nc6 {[%clk 1:34:20]} 9. Bc4 {[%clk
1:32:08]} 9... Bd7 {[%clk 1:34:49]} 10. h4 {[%clk 1:32:24]} 10... h5 {[%clk
1:35:12]} 11. O-O-O {[%clk 1:32:44]} 11... Rc8 {[%clk 1:35:21]} 12. Bb3 {[%clk
1:33:01]} 12... Ne5 {[%clk 1:35:44]} 13. Kb1 {[%clk 1:33:24]} 13... Nc4 {[%clk
1:18:14]} 14. Bxc4 {[%clk 1:33:52]} 14... Rxc4 {[%clk 1:18:43]} 15. g4 {[%clk
1:34:10]} 15... hxg4 {[%clk 1:17:34]} 16. h5 {[%clk 1:34:37]} 16... Nxh5 {[%clk
1:08:04]} 17. Rdg1 {[%clk 1:35:05]} 17... Qc8 {[%clk 0:56:02]} 18. Nd5 {[%clk
1:28:17]} 18... Re8 {[%clk 0:56:09]} 19. fxg4 {[%clk 1:26:34]} 19... Bxg4 {[%clk
0:56:00]} 20. b3 {[%clk 1:26:09]} 20... Rc5 {[%clk 0:52:41]} 21. Rh4 {[%clk
1:24:46]} 21... e6 {[%clk 0:43:33]} 22. Bh6 {[%clk 1:21:57]} 22... exd5 {[%clk
0:42:03]} 23. Bxg7 {[%clk 1:21:56]} 23... Kxg7 24. Rxh5 {[%clk 1:19:14]} 24...
Bxh5 {[%clk 0:33:29]} 25. Nf5+ {[%clk 1:19:42]} 25... Kf6 {[%clk 0:33:24]} 26.
Nxd6 {[%clk 1:19:20]} 26... Qc6 {[%clk 0:33:47]} 27. Nxe8+ {[%clk 1:17:49]}
27... Qxe8 {[%clk 0:33:33]} 28. Qd4+ {[%clk 1:17:59]} 28... Qe5 {[%clk 0:33:47]}
29. Qxc5 {[%clk 1:17:51]} 29... dxe4 {[%clk 0:34:01]} 30. Qf8 {[%clk 1:14:47]}
30... Qd5 {[%clk 0:31:53]} 31. Qh8+ {[%clk 1:04:55]} 31... Ke7 {[%clk 0:32:02]}
32. c4 {[%clk 1:05:07]} 32... Qd6 {[%clk 0:28:39]} 33. Re1 {[%clk 1:04:43]}
33... Bf3 {[%clk 0:29:07]} 34. Qh4+ {[%clk 1:04:06]} 34... Kd7 {[%clk 0:28:54]}
35. Kc1 {[%clk 1:01:02]} 35... Qd4 {[%clk 0:28:06]} 36. Qh3+ {[%clk 1:01:07]}
36... Ke7 {[%clk 0:26:32]} 37. Qh4+ {[%clk 1:01:17]} 37... Kf8 {[%clk 0:27:00]}
38. Qh6+ {[%clk 1:00:27]} 38... Ke8 {[%clk 0:27:28]} 39. Qe3 {[%clk 1:00:22]}
39... Qa1+ {[%clk 0:27:27]} 40. Kc2 {[%clk 1:00:28]} 40... Qxa2+ {[%clk
0:27:55]} 41. Kc3 {[%clk 1:00:57]} 41... Kf8 {[%clk 0:27:06]} 42. Qc5+ {[%clk
1:00:25]} 42... Kg8 {[%clk 0:27:33]} 43. Qe5 {[%clk 1:00:19]} 43... Qf2 {[%clk
0:26:20]} 44. Ra1 {[%clk 0:59:46]} 44... Qe3+ {[%clk 0:26:14]} 45. Kb4 {[%clk
0:59:42]} 45... Qb6+ {[%clk 0:25:07]} 46. Kc3 {[%clk 0:59:56]} 46... a6 {[%clk
0:24:52]} 47. Qb8+ {[%clk 0:59:38]} 47... Kg7 {[%clk 0:24:38]} 48. Qe5+ {[%clk
1:00:05]} 48... Kh7 {[%clk 0:24:06]} 49. c5 {[%clk 0:59:36]} 49... Qd8 {[%clk
0:23:44]} 50. Qd6 {[%clk 0:59:00]} 50... Qg5 51. Ra2 {[%clk 0:57:41]} 51... e3
{[%clk 0:22:59]} 52. Rh2+ {[%clk 0:57:11]} 52... Bh5 {[%clk 0:23:11]} 53. Rh1
{[%clk 0:56:41]} 53... e2 {[%clk 0:23:22]} 54. Kd4 0-1

[Variant "Standard"]
[Site "Europe Echecs"]

[Event "Championnat du monde jeunes U10"]
[Date "2024.11.25"]
[White "Ilko-Toth, Andras"]
[Black "Anetov, Amirzhan"]
[WhiteElo "2115"]
[BlackElo "1767"]
[Round "10.14"]
[Result "1-0"]
[TimeControl "5400+30"]

1. d4 {[%clk 1:30:57]} 1... d5 {[%clk 1:30:54]} 2. Nf3 {[%clk 1:31:18]} 2... Nf6
{[%clk 1:31:17]} 3. g3 {[%clk 1:31:38]} 3... c5 {[%clk 1:31:37]} 4. Bg2 {[%clk
1:32:00]} 4... cxd4 {[%clk 1:32:03]} 5. O-O {[%clk 1:32:18]} 5... h6 {[%clk
1:32:27]} 6. b3 {[%clk 1:32:42]} 6... Nbd7 {[%clk 1:32:54]} 7. Nxd4 {[%clk
1:25:58]} 7... e5 {[%clk 1:33:01]} 8. Nf3 {[%clk 1:25:36]} 8... Bc5 {[%clk
1:31:50]} 9. c4 {[%clk 1:20:00]} 9... dxc4 {[%clk 1:31:09]} 10. bxc4 {[%clk
1:18:53]} 10... O-O {[%clk 1:30:35]} 11. Nc3 {[%clk 1:10:25]} 11... Qc7 {[%clk
1:29:56]} 12. Bb2 {[%clk 1:00:24]} 12... Re8 {[%clk 1:27:00]} 13. e4 {[%clk
0:51:44]} 13... b6 {[%clk 1:15:24]} 14. Qa4 {[%clk 0:41:56]} 14... Bb7 {[%clk
1:02:18]} 15. Nd5 {[%clk 0:38:37]} 15... Qc8 {[%clk 1:02:18]} 16. Nh4 {[%clk
0:30:46]} 16... Bd4 {[%clk 0:56:28]} 17. Bxd4 {[%clk 0:20:03]} 17... exd4 {[%clk
0:56:53]} 18. Nf5 {[%clk 0:19:52]} 18... Nxd5 {[%clk 0:54:52]} 19. cxd5 {[%clk
0:20:10]} 19... Bxd5 {[%clk 0:49:46]} 20. Qxd4 {[%clk 0:19:03]} 20... Re5 {[%clk
0:48:10]} 21. Qxe5 {[%clk 0:19:21]} 21... Nxe5 {[%clk 0:46:46]} 22. Ne7+ {[%clk
0:19:46]} 22... Kf8 {[%clk 0:47:13]} 23. Nxc8 {[%clk 0:20:08]} 23... Bc4 {[%clk
0:47:42]} 24. Nd6 {[%clk 0:20:01]} 24... Bxf1 {[%clk 0:47:57]} 25. Rxf1 {[%clk
0:20:22]} 25... Rd8 {[%clk 0:47:55]} 26. Nb5 {[%clk 0:20:28]} 26... a6 {[%clk
0:48:15]} 27. Nc3 {[%clk 0:20:55]} 27... Rd3 {[%clk 0:48:18]} 28. Nd5 {[%clk
0:21:11]} 28... b5 {[%clk 0:48:44]} 29. Rc1 {[%clk 0:21:30]} 29... g5 {[%clk
0:48:15]} 30. f4 {[%clk 0:21:12]} 30... gxf4 {[%clk 0:47:07]} 31. gxf4 {[%clk
0:21:35]} 31... Nd7 {[%clk 0:47:28]} 32. Rc7 {[%clk 0:21:32]} 32... Rd1+ 33. Kf2
{[%clk 0:21:40]} 33... Rd2+ {[%clk 0:47:05]} 34. Kg3 {[%clk 0:21:49]} 34... Rd3+
{[%clk 0:47:15]} 35. Bf3 {[%clk 0:22:06]} 35... f5 {[%clk 0:47:40]} 36. e5
{[%clk 0:21:46]} 36... Ke8 {[%clk 0:47:20]} 37. e6 {[%clk 0:22:07]} 37... Rxd5
{[%clk 0:46:50]} 38. Bxd5 {[%clk 0:22:17]} 38... Nf6 {[%clk 0:46:46]} 39. Bc6+
{[%clk 0:22:40]} 39... Kd8 {[%clk 0:47:09]} 40. Rf7 {[%clk 0:23:05]} 40... Ne4+
{[%clk 0:46:58]} 41. Bxe4 {[%clk 0:23:21]} 41... fxe4 {[%clk 0:47:02]} 42. Rd7+
{[%clk 0:23:43]} 42... Ke8 {[%clk 0:47:27]} 43. f5 {[%clk 0:23:56]} 43... e3
{[%clk 0:47:53]} 44. f6 {[%clk 0:24:21]} 44... e2 {[%clk 0:48:04]} 45. f7+
{[%clk 0:24:42]} 45... Kf8 {[%clk 0:48:29]} 46. Rd8+ {[%clk 0:25:06]} 46... Ke7
{[%clk 0:48:56]} 47. f8=Q+ {[%clk 0:25:20]} 47... Kxe6 {[%clk 0:49:21]} 48. Rd6+
{[%clk 0:25:35]} 48... Ke5 {[%clk 0:48:51]} 49. Qf4# {[%clk 0:25:17]} 1-0

[Variant "Standard"]
[Site "Europe Echecs"]